bitfinex-derivatives/quotes_SOLF0:USTF0_20241101
["timestamp","ask_amount","ask_price","bid_price","bid_amount"]
[1730446511101,3.0097,166.26,166.23,8.33320982]
[1730446512105,8.33320982,166.28,166.23,8.33320982]
[1730446512400,3.0097,166.25,166.23,8.33320982]
[1730446512897,8.33320982,166.28,166.23,8.33320982]
[1730446513102,3.0101,166.24,166.21,8.33320982]
[1730446513286,3.0101,166.24,166.2,2.98]
[1730446514106,3.0101,166.24,166.21,8.33320982]
[1730446514990,3.01,166.24,166.21,8.33320982]
[1730446516100,3.0097,166.25,166.21,8.33320982]
[1730446516898,3.0103,166.22,166.2,2.98]
[1730446517197,8.33320982,166.26,166.2,2.98]
[1730446517693,8.33320982,166.27,166.21,8.33320982]
[1730446518103,3.0101,166.24,166.21,8.33320982]
[1730446519200,3.0102,166.23,166.2,2.98]
[1730446519404,8.33320982,166.25,166.2,2.98]
[1730446519990,8.33320982,166.25,166.19,8.33320982]
[1730446520190,8.33320982,166.23,166.17,10.94900982]
[1730446520501,1.3728,166.29,166.16,2.98]
[1730446520502,8.33320982,166.2,166.16,2.98]
[1730446520998,8.33320982,166.17,166.11,11.31320982]
[1730446521302,22.45568278,166.29,166.11,2.98]
[1730446521303,3.0119,166.14,166.11,2.98]
[1730446521510,8.33320982,166.16,166.1,8.33320982]
[1730446521690,2.98,166.2,166.09,8.33320982]
[1730446521691,8.33320982,166.14,166.09,8.33320982]
[1730446522199,8.33320982,166.13,166.08,2.98]
[1730446522413,2.98,166.2,166.07,2.98]
[1730446522414,8.33320982,166.11,166.07,2.98]
[1730446522987,3.0125,166.1,166.07,11.31320982]
[1730446523192,8.33320982,166.13,166.07,11.31320982]
[1730446523592,8.33320982,166.15,166.09,8.33320982]
[1730446524101,3.0121,166.13,166.09,8.33320982]
[1730446524294,8.33320982,166.15,166.1,8.33320982]
[1730446524495,8.33320982,166.16,166.1,8.33320982]
[1730446524707,3.0118,166.14,166.1,8.33320982]
[1730446525692,8.33320982,166.16,166.11,8.33320982]
[1730446525888,3.0116,166.15,166.13,8.33320982]
[1730446526093,8.33320982,166.18,166.13,8.33320982]
[1730446526511,3.0114,166.16,166.13,8.33320982]
[1730446527698,3.0114,166.16,166.11,5.9922]
[1730446527699,8.33320982,166.16,166.11,11.31320982]
[1730446528006,8.33320982,166.15,166.11,2.98]
[1730446528202,8.33320982,166.15,166.09,8.33320982]
[1730446529403,3.0121,166.13,166.09,8.33320982]
[1730446530198,8.33320982,166.15,166.09,8.33320982]
[1730446530393,3.012,166.13,166.09,8.33320982]
[1730446530706,8.33320982,166.13,166.08,14.32590982]
[1730446530895,3.0122,166.12,166.08,11.31320982]
[1730446531101,8.33320982,166.13,166.08,11.31320982]
[1730446532105,8.33320982,166.13,166.08,8.33320982]
[1730446532899,2.98,166.16,166.09,8.33320982]
[1730446532900,8.33320982,166.15,166.09,8.33320982]
[1730446533101,3.0119,166.13,166.09,8.33320982]
[1730446534706,8.33320982,166.16,166.1,8.33320982]
[1730446534907,3.0117,166.15,166.1,8.33320982]
[1730446535308,3.0117,166.15,166.1,11.31320982]
[1730446536302,3.0117,166.15,166.11,3.0122]
[1730446537910,8.33320982,166.16,166.11,3.0122]
[1730446538114,8.33320982,166.13,166.1,2.98]
[1730446538416,8.33320982,166.13,166.09,8.33320982]
[1730446538417,8.33320982,166.11,166.06,11.31320982]
[1730446538621,3.0128,166.09,166.06,11.31320982]
[1730446539421,8.33320982,166.11,166.06,11.31320982]
[1730446539629,3.0124,166.11,166.08,8.33320982]
[1730446540721,3.0124,166.1,166.06,11.31320982]
[1730446541018,8.33320982,166.12,166.06,11.31320982]
[1730446541214,3.013,166.08,166.05,2.98]
[1730446541407,3.013,166.08,165.88,18.08]
[1730446541408,8.33320982,166.07,166.02,8.33320982]
[1730446541613,8.33320982,166.06,166.01,2.98]
[1730446541916,8.33320982,166.07,166.02,8.33320982]
[1730446542312,8.33320982,166.09,166.03,8.33320982]
[1730446543419,3.0128,166.08,166.04,3.0135]
[1730446544621,8.33320982,166.12,166.06,8.33320982]
[1730446545213,8.33320982,166.12,166.06,11.34620982]
[1730446545214,3.0124,166.11,166.06,11.34620982]
[1730446545511,3.0124,166.11,166.07,8.33320982]
[1730446546106,3.0124,166.11,166.07,11.34600982]
[1730446548425,8.33320982,166.13,166.07,8.33320982]
[1730446548718,8.33320982,166.13,166.09,11.34570982]
[1730446548719,3.0119,166.13,166.09,11.34570982]
[1730446549412,4.3645,166.18,166.09,8.33320982]
[1730446549413,1.3845,166.18,166.09,8.33320982]
[1730446549620,1.3751,166.19,166.11,8.33320982]
[1730446549621,3.0117,166.14,166.11,8.33320982]
[1730446550120,3.0119,166.13,166.11,8.33320982]
[1730446550315,3.0119,166.13,166.09,14.32570982]
[1730446550515,8.33320982,166.13,166.09,2.98]
[1730446551122,3.0121,166.12,166.09,2.98]
[1730446552331,3.0121,166.12,166.09,11.31320982]
[1730446552517,8.33320982,166.15,166.09,14.32580982]
[1730446552518,3.0119,166.13,166.09,14.32580982]
[1730446552717,3.0119,166.13,166.11,8.33320982]
[1730446553321,3.0117,166.14,166.11,8.33320982]
[1730446554041,3.0117,166.15,166.11,11.34540982]
[1730446556729,3.0117,166.15,166.12,8.33320982]
[1730446560422,3.0115,166.16,166.13,3.0119]
[1730446560628,3.0115,166.16,166.12,8.33320982]
[1730446562239,3.0115,166.16,166.12,11.34530982]
[1730446563141,8.33320982,166.21,166.15,8.33320982]
[1730446564327,3.0111,166.18,166.15,8.33320982]
[1730446566750,8.33320982,166.16,166.13,2.96]
[1730446567133,3.0117,166.15,166.11,10.99740982]
[1730446567435,3.0117,166.15,166.11,13.95740982]
[1730446567630,3.0117,166.15,166.12,8.33320982]
[1730446569232,8.33320982,166.18,166.12,8.33320982]
[1730446569435,3.0114,166.16,166.12,3.0121]
[1730446569642,8.33320982,166.23,166.15,8.33320982]
[1730446569843,8.33320982,166.21,166.16,8.33320982]
[1730446570037,5.6118,166.24,166.14,8.33320982]
[1730446570038,8.33320982,166.2,166.14,8.33320982]
[1730446570441,3.0111,166.18,166.14,11.34490982]
[1730446571142,3.0111,166.18,166.15,8.33320982]
[1730446573250,3.0111,166.18,166.15,11.34470982]
[1730446573440,3.0111,166.18,166.15,8.33320982]
[1730446575241,8.33320982,166.21,166.15,8.33320982]
[1730446575449,3.0108,166.19,166.15,11.34460982]
[1730446575638,8.33320982,166.22,166.17,8.33320982]
[1730446575948,3.0107,166.2,166.17,11.34430982]
[1730446576137,57.9353513,166.26,166.18,8.33320982]
[1730446576138,8.33320982,166.24,166.18,8.33320982]
[1730446576643,3.0106,166.21,166.18,8.33320982]
[1730446576837,8.33320982,166.21,166.17,8.33320982]
[1730446577251,3.0107,166.2,166.17,8.33320982]
[1730446578153,8.33320982,166.21,166.15,11.29320982]
[1730446578551,3.0111,166.18,166.15,11.29320982]
[1730446582248,3.0108,166.19,166.15,14.30460982]
[1730446582845,3.0105,166.21,166.17,11.34420982]
[1730446583143,8.33320982,166.24,166.17,8.33320982]
[1730446583344,3.0103,166.22,166.19,8.33320982]
[1730446583854,8.33320982,166.25,166.19,8.33320982]
[1730446584755,3.0104,166.22,166.19,8.33320982]
[1730446592650,3.0105,166.21,166.19,8.33320982]
[1730446592956,8.33320982,166.25,166.19,8.33320982]
[1730446593165,3.0103,166.22,166.19,8.33320982]
[1730446594154,3.0102,166.23,166.19,8.33320982]
[1730446594457,8.33320982,166.22,166.17,8.33320982]
[1730446595659,3.0108,166.2,166.17,8.33320982]
[1730446597457,3.0108,166.2,166.15,2.96]
[1730446597458,3.0103,166.22,166.19,8.33320982]
[1730446599862,3.0101,166.23,166.19,11.34390982]
[1730446600051,3.0101,166.23,166.19,14.30390982]
[1730446600251,3.0097,166.25,166.22,11.34340982]
[1730446600668,3.0097,166.25,166.21,8.33320982]
[1730446601056,3.0097,166.25,166.21,11.34350982]
[1730446602772,3.0097,166.25,166.19,2.96]
[1730446602773,3.0096,166.26,166.23,8.33320982]
[1730446606575,3.0094,166.27,166.23,11.34310982]
[1730446606781,3.0094,166.27,166.24,8.33320982]
[1730446607274,3.0094,166.27,166.23,14.30310982]
[1730446607770,8.33320982,166.28,166.23,11.29320982]
[1730446609077,3.0098,166.25,166.23,11.29320982]
[1730446610671,3.0099,166.24,166.23,2.96]
[1730446611060,8.33320982,166.28,166.22,8.33320982]
[1730446611273,3.0099,166.25,166.22,8.33320982]
[1730446611877,3.0099,166.24,166.22,8.33320982]
[1730446614984,8.33320982,166.3,166.22,8.33320982]
[1730446615162,8.33320982,166.28,166.22,8.33320982]
[1730446615368,8.33320982,166.29,166.22,8.33320982]
[1730446615566,3.0097,166.26,166.22,8.33320982]
[1730446616565,3.0097,166.26,166.22,11.34340982]
[1730446618781,3.0102,166.23,166.19,14.30390982]
[1730446619183,3.0102,166.23,166.21,8.33320982]
[1730446619383,3.0099,166.25,166.22,8.33320982]
[1730446620283,3.0098,166.25,166.22,8.33320982]
[1730446620883,8.33320982,166.28,166.22,8.33320982]
[1730446621788,3.01,166.24,166.22,8.33320982]
[1730446622583,8.33320982,166.3,166.23,8.33320982]
[1730446623981,8.33320982,166.31,166.26,8.33320982]
[1730446624594,3.0093,166.28,166.26,8.33320982]
[1730446625778,3.0093,166.28,166.25,8.33320982]
[1730446626591,3.0093,166.28,166.25,11.34290982]
[1730446629389,3.0093,166.28,166.26,8.33320982]
[1730446629886,8.33320982,166.31,166.26,8.33320982]
[1730446630083,3.0091,166.29,166.27,8.33320982]
[1730446630989,3.0092,166.28,166.27,8.33320982]
[1730446632084,3.0092,166.28,166.26,8.33320982]
[1730446635786,8.33320982,166.32,166.26,8.33320982]
[1730446636589,3.0091,166.29,166.26,8.33320982]
[1730446636997,8.33320982,166.32,166.26,8.33320982]
[1730446637201,3.0092,166.28,166.26,8.33320982]
[1730446638301,3.0092,166.28,166.25,11.34290982]
[1730446638598,3.0093,166.28,166.25,8.33320982]
[1730446639398,3.0093,166.28,166.26,8.33320982]
[1730446640192,8.33320982,166.32,166.26,8.33320982]
[1730446640500,3.0092,166.29,166.26,8.33320982]
[1730446643099,3.0092,166.29,166.25,11.34290982]
[1730446643503,8.33320982,166.3,166.25,8.33320982]
[1730446644008,3.0093,166.28,166.25,8.33320982]
[1730446644606,3.0099,166.25,166.22,8.33320982]
[1730446644901,8.33320982,166.27,166.23,2.96]
[1730446645100,8.33320982,166.27,166.22,8.33320982]
[1730446646998,8.33320982,166.29,166.23,8.33320982]
[1730446647502,3.0098,166.25,166.23,8.33320982]
[1730446648895,8.33320982,166.29,166.23,8.33320982]
[1730446649095,3.0096,166.26,166.23,8.33320982]
[1730446650298,8.33320982,166.29,166.23,8.33320982]
[1730446650505,3.0095,166.27,166.23,11.34320982]
[1730446651010,3.0095,166.27,166.24,3.0099]
[1730446651203,3.0095,166.27,166.23,8.33320982]
[1730446651599,3.0095,166.27,166.23,11.34320982]
[1730446655518,3.0095,166.27,166.25,8.33320982]
[1730446656007,3.0092,166.29,166.25,11.34290982]
[1730446656316,2.7595,166.37,166.28,8.33320982]
[1730446656317,8.33320982,166.34,166.28,8.33320982]
[1730446656623,8.33320982,166.39,166.33,8.33320982]
[1730446656809,17.3698502,166.39,166.33,8.33320982]
[1730446657011,8.33320982,166.39,166.33,8.33320982]
[1730446657306,8.33320982,166.38,166.33,8.33320982]
[1730446657513,8.33320982,166.38,166.32,8.33320982]
[1730446658309,3.008,166.36,166.32,8.33320982]
[1730446658701,3.008,166.36,166.33,8.33320982]
[1730446658909,3.0079,166.37,166.33,8.33320982]
[1730446660916,3.0081,166.36,166.31,14.30210982]
[1730446662717,3.0082,166.35,166.31,11.29320982]
[1730446664620,3.0082,166.35,166.31,2.96]
[1730446666411,3.0082,166.35,166.3,9.64720982]
[1730446666714,3.0082,166.35,166.31,3.0089]
[1730446668225,3.0082,166.35,166.31,11.34210982]
[1730446669024,8.33320982,166.37,166.3,9.64720982]
[1730446669321,51.52044967,166.53,166.3,11.34230982]
[1730446669322,3.0085,166.34,166.3,11.34230982]
[1730446670624,3.0089,166.32,166.27,14.30270982]
[1730446670815,8.33320982,166.33,166.27,11.29320982]
[1730446671420,3.0091,166.31,166.27,14.30280982]
[1730446672026,3.0091,166.3,166.27,14.30280982]
[1730446672523,8.33320982,166.33,166.27,8.33320982]
[1730446672831,8.33320982,166.31,166.25,8.33320982]
[1730446673026,8.33320982,166.3,166.24,8.33320982]
[1730446674327,3.0096,166.28,166.24,11.34340982]
[1730446676712,3.0099,166.26,166.24,8.33320982]
[1730446679929,3.0099,166.26,166.22,7.303]
[1730446679930,3.0099,166.26,166.22,15.63620982]
[1730446680114,3.0099,166.26,166.22,14.30370982]
[1730446680314,3.0097,166.27,166.23,3.0104]
[1730446683440,3.0097,166.27,166.22,3.0105]
[1730446683441,3.0099,166.26,166.22,3.0105]
[1730446687040,3.0095,166.28,166.24,11.34340982]
[1730446687341,8.33320982,166.32,166.26,8.33320982]
[1730446687543,3.0093,166.29,166.26,11.34300982]
[1730446687923,8.33320982,166.32,166.26,8.33320982]
[1730446688226,2.7462,166.37,166.28,8.33320982]
[1730446688227,3.0091,166.31,166.28,8.33320982]
[1730446688638,11.34180982,166.33,166.29,3.0093]
[1730446689034,8.33320982,166.33,166.29,3.0093]
[1730446689434,8.33320982,166.33,166.28,8.33320982]
[1730446689637,3.0088,166.32,166.28,11.34260982]
[1730446691034,10.13945058,166.36,166.25,11.29320982]
[1730446691035,8.33320982,166.3,166.25,11.29320982]
[1730446691634,3.0095,166.28,166.25,11.29320982]
[1730446691831,8.33320982,166.3,166.25,11.29320982]
[1730446693242,3.0093,166.29,166.25,14.30320982]
[1730446696546,3.0093,166.29,166.26,8.33320982]
[1730446699546,3.0093,166.29,166.25,5.97]
[1730446699547,3.0095,166.29,166.25,2.96]
[1730446699745,8.33320982,166.29,166.25,2.96]
[1730446699943,8.33320982,166.29,166.23,8.33320982]
[1730446700247,3.0098,166.27,166.23,11.34360982]
[1730446701046,3.0098,166.27,166.24,8.33320982]
[1730446701674,3.0092,166.3,166.26,3.0097]
[1730446701955,8.33320982,166.33,166.27,8.33320982]
[1730446702253,3.0088,166.32,166.27,8.33320982]
[1730446702548,3.0088,166.32,166.25,2.96]
[1730446702549,3.0088,166.32,166.29,8.33320982]
[1730446703249,3.0088,166.32,166.29,11.34240982]
[1730446703946,3.0088,166.32,166.29,8.33320982]
[1730446704344,3.0088,166.32,166.28,3.0094]
[1730446704648,8.33320982,166.31,166.25,11.34320982]
[1730446705548,3.0095,166.29,166.25,11.34320982]
[1730446706448,8.33320982,166.31,166.25,8.33320982]
[1730446706653,3.0092,166.3,166.27,8.33320982]
[1730446709657,8.33320982,166.31,166.26,8.33320982]
[1730446709845,3.0096,166.28,166.24,14.30330982]
[1730446710158,8.33320982,166.3,166.24,2.96]
[1730446710341,3.0098,166.27,166.24,2.96]
[1730446711050,3.0098,166.27,166.23,11.34360982]
[1730446713247,3.0098,166.27,166.24,8.33320982]
[1730446715056,3.0098,166.27,166.23,11.34360982]
[1730446715646,3.0099,166.26,166.23,3.0104]
[1730446716055,3.0099,166.26,166.22,3.0105]
[1730446716944,8.33320982,166.27,166.21,9.67370982]
[1730446717145,3.0101,166.25,166.21,12.68440982]
[1730446718056,3.0103,166.24,166.21,9.67370982]
[1730446719874,8.33320982,166.27,166.21,9.67370982]
[1730446720071,8.33320982,166.25,166.2,8.33320982]
[1730446720359,3.0107,166.22,166.18,10.91530982]
[1730446720557,8.33320982,166.23,166.18,10.91530982]
[1730446721150,8.33320982,166.22,166.16,11.29320982]
[1730446721458,2.96,166.29,166.14,13.96180982]
[1730446721459,8.33320982,166.19,166.14,13.96180982]
[1730446721668,3.0116,166.17,166.14,13.96180982]
[1730446722258,3.0113,166.18,166.14,13.96180982]
[1730446723357,3.0113,166.18,166.14,16.97370982]
[1730446723559,3.0111,166.2,166.15,8.33320982]
[1730446724356,2.96,166.23,166.18,11.34450982]
[1730446724657,8.33320982,166.24,166.18,11.34450982]
[1730446724861,3.0104,166.23,166.18,11.34450982]
[1730446725766,8.33320982,166.24,166.18,11.34450982]
[1730446725965,3.0106,166.22,166.18,11.34450982]
[1730446726162,8.33320982,166.22,166.16,11.34490982]
[1730446726369,8.33320982,166.2,166.16,3.0117]
[1730446726559,11.34430982,166.2,166.16,3.0117]
[1730446727765,11.34430982,166.2,166.16,11.34490982]
[1730446727766,3.0111,166.2,166.16,11.34490982]
[1730446728460,11.34380982,166.22,166.17,3.0113]
[1730446729455,11.34400982,166.21,166.17,3.0113]
[1730446729763,8.33320982,166.21,166.15,9.69690982]
[1730446729969,8.33320982,166.19,166.15,1.3637]
[1730446730565,8.33320982,166.19,166.14,11.00180982]
[1730446730958,3.0115,166.17,166.14,11.00180982]
[1730446731266,8.33320982,166.19,166.14,14.01380982]
[1730446731665,8.33320982,166.19,166.14,11.34520982]
[1730446732165,3.0114,166.18,166.14,11.34520982]
[1730446735960,2.96,166.22,166.12,4.3503]
[1730446735961,3.0117,166.16,166.12,3.0122]
[1730446737768,8.33320982,166.17,166.11,8.33320982]
[1730446737953,3.012,166.15,166.1,11.34580982]
[1730446738963,8.33320982,166.16,166.1,11.34580982]
[1730446739180,3.0121,166.14,166.1,11.34580982]
[1730446739469,8.33320982,166.17,166.13,3.0122]
[1730446740179,11.34480982,166.17,166.13,3.0122]
[1730446740775,3.0117,166.16,166.12,3.0122]
[1730446741073,8.33320982,166.13,166.08,8.33320982]
[1730446741462,8.33320982,166.15,166.09,8.33320982]
[1730446741661,3.012,166.14,166.1,3.0126]
[1730446743073,3.0115,166.17,166.13,3.0121]
[1730446744564,3.0117,166.16,166.13,3.0121]
[1730446747481,11.34470982,166.18,166.15,3.0118]
[1730446747879,8.33320982,166.19,166.14,8.33320982]
[1730446748078,8.33320982,166.19,166.16,3.0116]
[1730446749074,11.34430982,166.19,166.16,3.0116]
[1730446749580,8.33320982,166.19,166.17,3.0113]
[1730446749881,11.34410982,166.21,166.17,3.0113]
[1730446750085,11.34410982,166.21,166.18,3.0113]
[1730446752583,11.34410982,166.21,166.17,3.0114]
[1730446759691,8.33320982,166.19,166.14,8.33320982]
[1730446759895,11.34460982,166.18,166.14,3.012]
[1730446760100,8.33320982,166.16,166.11,2.58]
[1730446760284,8.33320982,166.16,166.11,1.2735]
[1730446760890,3.0119,166.15,166.11,4.2859]
[1730446762396,8.33320982,166.13,166.09,2.96]
[1730446762592,8.33320982,166.13,166.07,8.33320982]
[1730446762787,3.0126,166.11,166.07,11.34640982]
[1730446762988,8.33320982,166.13,166.07,8.33320982]
[1730446763193,8.33320982,166.13,166.08,8.33320982]
[1730446763693,8.33320982,166.13,166.09,3.0129]
[1730446763995,8.33320982,166.15,166.09,3.0129]
[1730446764295,3.0121,166.14,166.09,11.34610982]
[1730446765586,3.0121,166.14,166.1,3.0127]
[1730446770498,3.0121,166.14,166.11,3.0126]
[1730446770707,3.0121,166.14,166.1,8.33320982]
[1730446771601,3.0121,166.14,166.08,8.33320982]
[1730446774298,3.0121,166.14,166.1,3.0127]
[1730446775707,8.33320982,166.13,166.1,3.0127]
[1730446775911,11.34550982,166.13,166.08,3.013]
[1730446777317,11.34550982,166.13,166.09,3.0129]
[1730446778802,11.34550982,166.13,166.07,11.29320982]
[1730446778803,11.34580982,166.11,166.07,3.0131]
[1730446779394,8.33320982,166.11,166.06,13.90600982]
[1730446779600,8.33320982,166.11,166.08,3.0131]
[1730446779906,2.96,166.17,166.06,1.3079]
[1730446779907,8.33320982,166.09,166.06,1.3079]
[1730446780411,8.33320982,166.11,166.05,8.33320982]
[1730446780612,3.013,166.09,166.05,11.34670982]
[1730446781306,8.33320982,166.11,166.05,8.33320982]
[1730446781499,11.34560982,166.12,166.08,3.0131]
[1730446782308,11.34560982,166.12,166.07,8.33320982]
[1730446782309,8.33320982,166.12,166.07,8.33320982]
[1730446782500,3.0126,166.11,166.07,8.33320982]
[1730446783306,3.0126,166.11,166.07,11.34640982]
[1730446784218,11.34590982,166.11,166.06,3.0134]
[1730446784409,8.33320982,166.1,166.06,3.0134]
[1730446785308,11.34600982,166.1,166.06,3.0134]
[1730446785814,3.0128,166.1,166.06,3.0134]
[1730446794419,11.34560982,166.12,166.08,3.0131]
[1730446796020,3.0127,166.11,166.07,8.33320982]
[1730446797322,3.0127,166.11,166.07,11.34640982]
[1730446797624,8.33320982,166.14,166.08,11.29320982]
[1730446797820,8.33320982,166.14,166.09,8.33320982]
[1730446798417,8.33320982,166.14,166.11,3.0125]
[1730446800727,8.33320982,166.13,166.09,3.0128]
[1730446801225,11.34550982,166.13,166.09,3.0128]
[1730446806742,8.33320982,166.11,166.05,2.96]
[1730446807236,8.33320982,166.1,166.06,3.0133]
[1730446807929,11.34600982,166.1,166.06,3.0134]
[1730446808429,11.34600982,166.1,166.04,11.29320982]
[1730446808430,8.33320982,166.1,166.04,2.96]
[1730446808638,11.34610982,166.1,166.05,3.0135]
[1730446809336,3.013,166.09,166.05,3.0135]
[1730446809731,8.33320982,166.08,166.04,5.9738]
[1730446809942,11.34640982,166.08,166.04,5.9738]
[1730446810434,11.34640982,166.08,166.03,3.0139]
[1730446810435,3.0133,166.07,166.03,3.0139]
[1730446810636,11.34650982,166.07,166.03,3.0139]
[1730446812237,8.33320982,166.05,166.02,3.0141]
[1730446814132,11.34670982,166.06,166.02,3.0141]
[1730446814535,11.34630982,166.08,166.03,3.0138]
[1730446814727,8.33320982,166.08,166.03,8.33320982]
[1730446815132,8.33320982,166.08,166.04,3.0138]
[1730446818033,11.34630982,166.08,166.04,3.0138]
[1730446818633,8.33320982,166.07,166.04,3.0138]
[1730446823239,3.0135,166.06,166.02,3.0142]
[1730446823450,8.33320982,166.05,166.01,1.2864]
[1730446823844,8.33320982,166.05,166.0,9.68530982]
[1730446824148,11.34700982,166.05,166.01,3.0142]
[1730446824737,8.33320982,166.05,166.02,3.0142]
[1730446826456,11.34700982,166.05,166.0,15.65970982]
[1730446827460,8.33320982,166.05,166.0,12.69970982]
[1730446827655,8.33320982,166.04,165.99,3.0147]
[1730446828159,3.0141,166.03,165.99,3.0147]
[1730446830162,11.34740982,166.02,165.98,3.0148]
[1730446830455,8.33320982,166.02,165.97,1.3763]
[1730446830757,8.33320982,166.02,165.97,4.3913]
[1730446830758,8.33320982,166.01,165.97,4.3913]
[1730446831552,8.33320982,166.01,165.97,3.015]
[1730446832051,3.0144,166.02,165.94,35.61215111]
[1730446832052,8.33320982,165.99,165.94,8.33320982]
[1730446832460,8.33320982,165.99,165.93,11.29320982]
[1730446832660,8.33320982,165.99,165.95,3.0153]
[1730446834755,11.34790982,165.99,165.95,3.0153]
[1730446835056,8.33320982,165.99,165.95,3.0153]
[1730446836156,11.34800982,165.99,165.95,3.0153]
[1730446836783,8.33320982,165.99,165.95,3.0153]
[1730446837958,8.33320982,165.99,165.94,8.33320982]
[1730446838544,8.33320982,165.99,165.96,3.0152]
[1730446839346,8.33320982,165.99,165.95,3.0154]
[1730446840849,8.33320982,165.99,165.93,14.31811258]
[1730446841045,3.015,165.98,165.93,14.31811258]
[1730446841451,8.33320982,165.99,165.93,14.31811258]
[1730446842264,11.34800982,165.99,165.95,3.0155]
[1730446842460,8.33320982,165.98,165.95,3.0155]
[1730446843055,11.34820982,165.98,165.94,3.0156]
[1730446843754,3.0151,165.97,165.93,14.30900982]
[1730446843966,3.0151,165.97,165.93,11.34900982]
[1730446844467,3.0155,165.95,165.91,5.9761]
[1730446845965,3.0155,165.95,165.91,3.0161]
[1730446846168,8.33320982,165.93,165.9,4.2175]
[1730446846958,8.33320982,165.93,165.9,1.2575]
[1730446847359,8.33320982,165.93,165.9,4.2739]
[1730446848376,8.33320982,165.93,165.89,3.0165]
[1730446848760,11.34900982,165.93,165.88,8.33320982]
[1730446848961,11.34900982,165.93,165.88,11.34980982]
[1730446849156,11.34900982,165.93,165.88,8.33320982]
[1730446849157,8.33320982,165.93,165.88,8.33320982]
[1730446849367,8.33320982,165.93,165.87,11.29320982]
[1730446850172,8.33320982,165.93,165.89,3.0164]
[1730446851274,11.34900982,165.93,165.89,3.0164]
[1730446852680,8.33320982,165.93,165.91,3.0162]
[1730446853882,8.33320982,165.93,165.9,3.0163]
[1730446860177,8.33320982,165.93,165.88,8.33320982]
[1730446860475,2.96,165.99,165.88,8.33320982]
[1730446860476,8.33320982,165.95,165.88,8.33320982]
[1730446861778,8.33320982,165.95,165.91,3.0161]
[1730446866587,11.34870982,165.95,165.91,3.0161]
[1730446866974,8.33320982,165.93,165.91,3.0161]
[1730446867281,11.34910982,165.93,165.88,3.0167]
[1730446867472,11.34910982,165.93,165.88,5.9767]
[1730446868081,8.33320982,165.92,165.88,5.9767]
[1730446868883,3.0162,165.91,165.86,5.9769]
[1730446869186,8.33320982,165.9,165.86,5.9769]
[1730446870081,11.34960982,165.9,165.85,5.6377]
[1730446870390,11.34960982,165.9,165.85,8.6549]
[1730446871486,11.34960982,165.9,165.85,7.283]
[1730446872283,8.33320982,165.9,165.85,7.35282225]
[1730446872688,8.33320982,165.91,165.85,15.68603207]
[1730446872988,8.33320982,165.91,165.87,3.0168]
[1730446874391,11.34960982,165.9,165.86,3.0171]
[1730446878001,8.33320982,165.9,165.85,4.2658]
[1730446878182,11.34940982,165.91,165.87,3.0169]
[1730446879087,8.33320982,165.9,165.85,2.96]
[1730446879302,8.33320982,165.9,165.86,3.017]
[1730446882088,11.34960982,165.9,165.86,3.017]
[1730446883290,11.34990982,165.88,165.84,3.0174]
[1730446883905,8.33320982,165.88,165.84,3.0174]
[1730446884404,8.33320982,165.88,165.82,2.96]
[1730446884792,8.33320982,165.88,165.84,3.0174]
[1730446884987,8.33320982,165.86,165.82,2.96]
[1730446886206,11.34990982,165.89,165.82,11.29320982]
[1730446886602,8.33320982,165.89,165.82,11.29320982]
[1730446887606,8.33320982,165.89,165.86,3.0171]
[1730446892618,8.33320982,165.92,165.87,8.33320982]
[1730446893004,8.33320982,165.93,165.87,8.33320982]
[1730446893200,8.33320982,165.93,165.91,3.0162]
[1730446893411,8.33320982,165.93,165.88,3.05526744]
[1730446894514,8.33320982,165.93,165.9,3.0164]
[1730446902122,8.33320982,165.93,165.88,11.38847726]
[1730446907018,11.34870982,165.95,165.88,14.40507726]
[1730446907621,11.34860982,165.96,165.9,8.33320982]
[1730446907823,11.34860982,165.96,165.9,11.27320982]
[1730446909314,11.34860982,165.96,165.9,14.28960982]
[1730446910523,8.33320982,165.96,165.9,11.27320982]
[1730446910719,3.0155,165.95,165.9,11.27320982]
[1730446911422,8.33320982,165.96,165.9,11.27320982]
[1730446912315,3.0155,165.95,165.9,11.27320982]
[1730446915531,3.0157,165.94,165.9,11.27320982]
[1730446916231,3.0159,165.93,165.9,11.27320982]
[1730446916733,8.33320982,165.95,165.9,11.27320982]
[1730446916932,3.0162,165.92,165.9,2.94]
[1730446917333,3.0162,165.91,165.9,2.94]
[1730446918324,3.0162,165.91,165.89,2.94]